[Event "GER-chT States Women 2022"]
[Site "Braunfels"]
[Date "2022.06.17"]
[Round "2.39"]
[White "Albayrak, Aylin"]
[Black "Hielscher, Ursula"]
[Result "1-0"]
[ECO "D30"]
[WhiteElo "1671"]
[BlackElo "1717"]
[Annotator "NA RC"]
[PlyCount "67"]
[EventDate "2022.06.15"]
[EventType "swiss"]
[EventCountry "GER"]
[SourceTitle "playchess.com"]
[Source "ChessBase"]
[SourceQuality "1"]
[TimeControl "40/5400+30:1800+30"]

1. d4 {[%emt 0:00:01]} d5 {[%emt 0:00:14]} 2. c4 {[%emt 0:00:06]} e6 {[%emt 0:00:04]} 3. Nf3 {[%emt 0:00:06]} Nf6 {[%emt 0:00:03]} 4. Bg5 {[%emt 0:00:34]} Nbd7 {[%emt 0:00:11]} 5. cxd5 {[%emt 0:01:21]} exd5 {[%emt 0:00:17]} 6. Nc3 {[%emt 0:00:10]} c6 {[%emt 0:00:18]} 7. e3 {[%emt 0:00:46]} Bb4 {[%emt 0:01:11]} 8. Qb3 {[%emt 0:00:41]} Bd6 {[%emt 0:03:36]} 9. Bd3 {[%emt 0:02:19]} h6 {[%emt 0:02:12]} 10. Bh4 {[%emt 0:01:12]} O-O {[%emt 0:00:09]} 11. O-O {[%emt 0:00:59]} Re8 {[%emt 0:03:39]} 12. Rac1 {[%emt 0:02:00]} Nf8 {[%emt 0:03:05]} 13. Rfe1 {[%emt 0:02:39]} Ng6 {[%emt 0:03:43]} 14. Bg3 {[%emt 0:01:55]} Bxg3 {[%emt 0:00:46]} 15. hxg3 {[%emt 0:00:14]} Rb8 {[%emt 0:07:31]} 16. Qc2 {[%emt 0:05:16]} Nf8 {[%emt 0:05:17]} 17. b4 {[%emt 0:03:15]} Qe7 {[%emt 0:06:30]} 18. b5 {[%emt 0:06:16]} Bd7 {[%emt 0:06:46]} 19. Ne5 {[%emt 0:05:35]} c5 {[%emt 0:02:31]} 20. Nxd7 {[%emt 0:03:28]} N8xd7 {[%emt 0:00:28]} 21. dxc5 {[%emt 0:01:36]} Qxc5 {[%emt 0:02:53]} 22. Qb3 {[%emt 0:03:05]} Rbc8 {[%emt 0:04:22]} 23. Ne2 {[%emt 0:01:41]} Qb6 {[%emt 0:01:40]} 24. Bf5 {[%emt 0:04:59]} Rxc1 {[%emt 0:07:45]} 25. Rxc1 {[%emt 0:00:45]} g6 {[%emt 0:03:36]} 26. Bxd7 {[%emt 0:03:08]} Nxd7 {[%emt 0:00:04]} 27. Qxd5 {[%emt 0:00:42]} Nf6 {[%emt 0:00:30]} 28. Qb3 {[%emt 0:02:37]} Qa5 {[%emt 0:03:42]} 29. Nf4 {[%emt 0:04:07]} g5 {[%emt 0:04:58]} 30. Ne2 {[%emt 0:07:55]} Ne4 {[%emt 0:04:50]} 31. Qb2 {[%emt 0:06:05]} Nd6 {[%emt 0:04:37]} 32. Nd4 {[%emt 0:03:12]} Ne4 {[%emt 0:04:41]} 33. Nf5 {[%emt 0:01:21]} f6 {[%emt 0:01:20]} 34. Qb3+ {[%emt 0:03:02]} 1-0

[Event "GER-chT States Women 2022"]
[Site "Braunfels"]
[Date "2022.06.17"]
[Round "2.40"]
[White "Zoellner, Bente"]
[Black "Alferova, Emily"]
[Result "1-0"]
[ECO "D43"]
[WhiteElo "1589"]
[BlackElo "1536"]
[Annotator "NA RC"]
[PlyCount "95"]
[EventDate "2022.06.15"]
[EventType "swiss"]
[EventCountry "GER"]
[SourceTitle "playchess.com"]
[Source "ChessBase"]
[SourceQuality "1"]
[TimeControl "40/5400+30:1800+30"]

1. d4 {[%emt 0:00:04]} d5 {[%emt 0:00:06]} 2. c4 {[%emt 0:00:10]} e6 {[%emt 0:00:08]} 3. Nf3 {[%emt 0:00:11]} Nf6 {[%emt 0:00:09]} 4. Nc3 {[%emt 0:00:13]} c6 {[%emt 0:00:06]} 5. Bg5 {[%emt 0:00:09]} h6 {[%emt 0:00:10]} 6. Bh4 {[%emt 0:00:10]} dxc4 {[%emt 0:00:20]} 7. a4 {[%emt 0:00:53]} g5 {[%emt 0:20:35]} 8. Bg3 {[%emt 0:00:16]} Bb4 {[%emt 0:04:21]} 9. e3 {[%emt 0:02:35]} Ne4 {[%emt 0:12:49]} 10. Qc2 {[%emt 0:01:16]} Bxc3+ {[%emt 0:01:20]} 11. bxc3 {[%emt 0:00:27]} Nxg3 {[%emt 0:00:23]} 12. hxg3 {[%emt 0:00:46]} Nd7 {[%emt 0:10:54]} 13. Bxc4 {[%emt 0:00:27]} Qf6 {[%emt 0:02:35]} 14. Qe4 {[%emt 0:05:19]} Nb6 {[%emt 0:08:47]} 15. Bb3 {[%emt 0:02:32]} a5 {[%emt 0:10:17]} 16. c4 {[%emt 0:08:23]} Qe7 {[%emt 0:07:26]} 17. c5 {[%emt 0:04:06]} Nd7 {[%emt 0:00:50]} 18. Bc4 {[%emt 0:04:59]} Qf6 {[%emt 0:01:49]} 19. Rd1 {[%emt 0:04:30]} Qe7 {[%emt 0:06:43]} 20. Ke2 {[%emt 0:07:55]} Nf8 {[%emt 0:03:49]} 21. Qe5 {[%emt 0:08:04]} Ng6 {[%emt 0:01:30]} 22. Qd6 {[%emt 0:00:30]} Qxd6 {[%emt 0:03:21]} 23. cxd6 {[%emt 0:00:07]} Bd7 {[%emt 0:01:31]} 24. Bd3 {[%emt 0:01:45]} f5 {[%emt 0:00:30]} 25. Rb1 {[%emt 0:01:14]} Rb8 {[%emt 0:01:05]} 26. Rb6 {[%emt 0:01:35]} Rh7 {[%emt 0:00:59]} 27. Nxg5 {[%emt 0:01:37]} Rh8 {[%emt 0:00:46]} 28. Nf3 {[%emt 0:00:23]} Bc8 {[%emt 0:00:35]} 29. Ne5 {[%emt 0:01:01]} Nxe5 {[%emt 0:00:11]} 30. dxe5 {[%emt 0:00:07]} Ra8 {[%emt 0:00:42]} 31. g4 {[%emt 0:03:22]} fxg4 {[%emt 0:00:22]} 32. Bg6+ {[%emt 0:00:53]} Kf8 {[%emt 0:00:26]} 33. Rh4 {[%emt 0:00:18]} h5 {[%emt 0:00:45]} 34. Rxh5 {[%emt 0:01:01]} Rg8 {[%emt 0:00:35]} 35. Bd3 {[%emt 0:06:27]} g3 {[%emt 0:00:16]} 36. f4 {[%emt 0:00:31]} Rb8 {[%emt 0:00:38]} 37. Kf3 {[%emt 0:01:55]} Bd7 {[%emt 0:00:19]} 38. Rh7 {[%emt 0:01:01]} Rg7 {[%emt 0:00:49]} 39. Rxg7 {[%emt 0:00:21]} Kxg7 {[%emt 0:00:06]} 40. Kxg3 {[%emt 0:00:14]} Kh6 {[%emt 0:00:10]} 41. Kh4 {[%emt 0:30:49]} Kg7 {[%emt 0:30:27]} 42. Kg5 {[%emt 0:01:25]} Bc8 {[%emt 0:00:00]} 43. Ba6 {[%emt 0:00:00]} Kf7 {[%emt 0:00:00]} 44. Kh6 {[%emt 0:00:00]} c5 {[%emt 0:00:00]} 45. Bb5 {[%emt 0:00:00]} c4 {[%emt 0:00:00]} 46. d7 {[%emt 0:00:00]} Bxd7 {[%emt 0:00:00]} 47. Bxd7 {[%emt 0:00:00]} c3 {[%emt 0:00:00]} 48. Bxe6+ {[%emt 0:00:00]} 1-0